bitfinex/quotes_SOLUSD_20250422
["timestamp","ask_amount","ask_price","bid_price","bid_amount"]
[1745282762488,20.34790676,135.59,135.57,0.063]
[1745282762688,45.80740303,135.62,135.57,0.063]
[1745282762892,20.34790676,135.58,135.57,0.063]
[1745282763204,7.37463126,135.6,135.57,0.063]
[1745282763590,46.15911619,135.6,135.57,0.063]
[1745282763794,20.34790676,135.58,135.57,0.063]
[1745282764001,20.34790676,135.59,135.57,0.063]
[1745282764198,20.34790676,135.58,135.57,0.063]
[1745282764596,20.34790676,135.59,135.57,0.063]
[1745282764897,66.99911619,135.6,135.57,0.063]
[1745282765308,20.34790676,135.59,135.57,0.063]
[1745282765495,7.37571913,135.58,135.57,0.063]
[1745282767312,27.72362589,135.58,135.57,0.063]
[1745282768511,7.37571913,135.58,135.57,0.063]
[1745282769013,48.56090683,135.63,135.57,20.41090676]
[1745282769208,38.78176607,135.62,135.57,20.41090676]
[1745282769608,20.34790676,135.61,135.57,0.063]
[1745282770211,20.34790676,135.59,135.57,0.063]
[1745282770393,127.46693208,135.62,135.57,0.063]
[1745282770394,20.34790676,135.58,135.57,0.063]
[1745282771485,59.13971719,135.58,135.57,1e-08]
[1745282771685,66.51543632,135.58,135.57,1e-08]
[1745282771920,38.99755562,135.57,135.56,1e-08]
[1745282772129,20.0,135.56,135.54,1e-08]
[1745282772416,20.34790676,135.55,135.54,1e-08]
[1745282772593,39.13971719,135.55,135.44,16.82734025]
[1745282772800,20.34790676,135.47,135.43,8.1403]
[1745282773210,20.84,135.5,135.44,26.0]
[1745282773395,20.34790676,135.49,135.44,46.34790676]
[1745282774026,7.38116327,135.48,135.44,46.34790676]
[1745282774324,7.38116327,135.48,135.44,20.34790676]
[1745282774522,7.38082729,135.49,135.46,20.34790676]
[1745282775415,20.84,135.52,135.48,20.34790676]
[1745282775710,7.37884263,135.53,135.51,20.34790676]
[1745282775910,7.37789582,135.54,135.5,20.34790676]
[1745282776087,7.37789582,135.54,135.5,46.34790676]
[1745282776289,7.37789582,135.54,135.5,26.0]
[1745282776516,27.72580258,135.54,135.5,26.0]
[1745282777017,20.34790676,135.53,135.5,26.0]
[1745282777204,20.34790676,135.51,135.45,20.34790676]
[1745282777515,20.34790676,135.47,135.43,8.1703]
[1745282777821,41.20790676,135.49,135.44,46.34790676]
[1745282778002,27.72907003,135.48,135.43,28.51820676]
[1745282778317,27.72907003,135.48,135.44,26.0]
[1745282778620,20.34790676,135.46,135.43,8.1703]
[1745282778921,20.34790676,135.45,135.43,0.03]
[1745282779224,20.34790676,135.44,135.43,0.03]
[1745282779426,30.22942462,135.44,135.43,0.03]
[1745282780218,7.38334317,135.44,135.43,0.03]
[1745282780401,37.61276779,135.44,135.43,0.03]
[1745282780902,7.38334317,135.44,135.43,0.03]
[1745282781417,46.0,135.5,135.43,30.25942462]
[1745282781715,28.24061849,135.49,135.45,30.22942462]
[1745282781916,58.47004311,135.49,135.43,26.03]
[1745282782121,7.38225306,135.46,135.45,26.0]
[1745282782295,7.38225306,135.46,135.43,26.03]
[1745282782296,37.61167768,135.46,135.43,0.03]
[1745282782498,30.22942462,135.45,135.43,0.03]
[1745282782906,37.61167768,135.46,135.43,0.03]
[1745282783310,30.22942462,135.45,135.43,0.03]
[1745282783504,30.22942462,135.44,135.43,0.03]
[1745282783820,25.83788571,135.46,135.43,0.03]
[1745282784010,30.22942462,135.44,135.43,0.03]
[1745282784211,37.61276779,135.44,135.43,0.03]
[1745282785317,7.38297369,135.45,135.43,0.03]
[1745282785504,37.61239831,135.45,135.43,0.03]
[1745282786017,20.86,135.46,135.43,30.25942462]
[1745282786220,20.86,135.46,135.44,26.0]
[1745282786427,20.86,135.46,135.45,30.22942462]
[1745282786721,7.38066562,135.49,135.45,30.22942462]
[1745282786931,7.38066562,135.49,135.46,30.22942462]
[1745282787297,7.38066562,135.49,135.44,56.22942462]
[1745282787723,30.22942462,135.48,135.44,26.0]
[1745282788022,30.22942462,135.48,135.43,0.03]
[1745282788215,30.22942462,135.48,135.43,30.25942462]
[1745282788401,7.38170812,135.47,135.43,0.03]
[1745282788604,7.38170812,135.47,135.43,30.25942462]
[1745282788827,7.38170812,135.47,135.44,30.22942462]
[1745282789008,20.0,135.5,135.46,30.22942462]
[1745282789330,7.3800738,135.5,135.46,30.22942462]
[1745282789507,28.21971639,135.51,135.48,30.22942462]
[1745282789709,28.21971639,135.51,135.5,30.22942462]
[1745282789710,20.84,135.51,135.5,30.22942462]
[1745282790120,20.84,135.51,135.49,30.22942462]
[1745282790529,7.37789582,135.54,135.5,30.22942462]
[1745282790711,7.37789582,135.54,135.51,30.22942462]
[1745282791030,260.31757609,135.55,135.52,30.22942462]
[1745282791232,260.31757609,135.55,135.51,30.22942462]
[1745282791607,260.31757609,135.55,135.52,30.22942462]
[1745282792409,18.43810416,135.59,135.54,30.22942462]
[1745282792620,20.903,135.6,135.56,30.22942462]
[1745282792832,7.37517516,135.59,135.56,30.22942462]
[1745282793007,7.37517516,135.59,135.56,26.0]
[1745282793325,7.37517516,135.59,135.55,30.22942462]
[1745282793526,7.37517516,135.59,135.56,30.22942462]
[1745282793730,7.37517516,135.59,135.55,30.22942462]
[1745282795129,7.37517516,135.59,135.54,26.0]
[1745282795130,28.27785106,135.6,135.56,30.22942462]
[1745282795450,20.903,135.6,135.59,30.22942462]
[1745282795626,0.063,135.6,135.59,30.22942462]
[1745282795816,0.063,135.6,135.59,56.22942462]
[1745282796216,0.063,135.6,135.59,26.0]
[1745282796513,0.063,135.6,135.59,56.22942462]
[1745282796835,0.063,135.6,135.59,56.37158619]
[1745282798534,0.063,135.6,135.59,62.98748619]
[1745282800645,0.063,135.6,135.59,26.0]
[1745282800814,0.063,135.6,135.59,56.22942462]
[1745282801143,0.063,135.6,135.57,30.22942462]
[1745282801315,0.063,135.6,135.57,46.40874495]
[1745282801641,0.063,135.6,135.59,20.40874495]
[1745282802318,0.063,135.6,135.59,46.40874495]
[1745282802939,0.063,135.6,135.59,46.55090652]
[1745282804248,0.063,135.6,135.59,26.0]
[1745282805213,0.063,135.6,135.59,46.40874495]
[1745282805446,0.063,135.6,135.59,46.55090652]
[1745282805937,0.063,135.6,135.59,59.60930033]
[1745282806247,0.063,135.66,135.65,20.40874495]
[1745282807523,0.063,135.66,135.63,20.40874495]
[1745282807820,0.063,135.66,135.62,48.02074495]
[1745282808153,0.063,135.66,135.63,20.40874495]
[1745282808653,0.063,135.66,135.64,20.40874495]
[1745282809148,0.063,135.66,135.63,46.40874495]
[1745282809326,20.40874495,135.65,135.6,20.40874495]
[1745282809520,20.47174495,135.66,135.61,20.40874495]
[1745282809723,20.47174495,135.66,135.6,26.0]
[1745282809724,0.063,135.66,135.62,20.40874495]
[1745282809943,0.063,135.66,135.63,20.40874495]
[1745282810141,0.063,135.66,135.64,20.40874495]
[1745282810352,0.063,135.66,135.65,20.40874495]
[1745282811015,0.063,135.66,135.64,20.40874495]
[1745282811212,0.063,135.66,135.65,20.40874495]
[1745282811624,0.063,135.66,135.64,20.40874495]
[1745282811819,0.063,135.66,135.65,20.40874495]
[1745282812644,0.063,135.66,135.64,20.40874495]
[1745282812827,0.063,135.66,135.65,20.40874495]
[1745282813641,0.063,135.66,135.64,20.40874495]
[1745282814151,0.063,135.66,135.65,20.40874495]
[1745282817047,0.063,135.66,135.64,20.40874495]
[1745282817351,0.063,135.66,135.65,20.40874495]
[1745282818557,0.063,135.66,135.63,32.6159]
[1745282818732,0.063,135.66,135.65,20.40874495]
[1745282820046,0.063,135.66,135.64,20.40874495]
[1745282820232,0.063,135.66,135.63,32.6159]
[1745282820451,0.063,135.66,135.64,20.40874495]
[1745282821669,0.063,135.66,135.65,20.40874495]
[1745282822078,0.063,135.66,135.65,46.55090652]
[1745282822566,0.063,135.66,135.65,26.0]
[1745282822864,0.063,135.66,135.65,46.40874495]
[1745282823163,0.063,135.66,135.65,46.55090652]
[1745282823467,0.063,135.66,135.65,26.14216157]
[1745282823672,0.063,135.66,135.65,46.55090652]
[1745282824739,0.063,135.66,135.65,46.40874495]
[1745282826266,0.063,135.66,135.65,46.55090652]
[1745282826867,0.063,135.66,135.65,46.40874495]
[1745282827366,0.063,135.66,135.65,26.0]
[1745282827543,0.063,135.66,135.63,101.02674495]
[1745282827754,0.063,135.66,135.63,127.02674495]
[1745282828072,0.063,135.66,135.64,20.40874495]
[1745282828252,0.063,135.66,135.65,20.40874495]
[1745282828644,0.063,135.66,135.65,46.55090652]
[1745282829956,0.063,135.66,135.65,46.40874495]
[1745282830466,0.063,135.66,135.65,26.0]
[1745282830646,0.063,135.66,135.65,46.55090652]
[1745282831363,0.063,135.66,135.65,65.20055538]
[1745282831668,0.063,135.67,135.66,6.20736157]
[1745282831849,0.063,135.68,135.67,40.95965147]
[1745282833078,0.063,135.68,135.67,20.55090652]
[1745282833262,0.063,135.72,135.7,26.0]
[1745282833567,0.063,135.72,135.71,46.55090652]
[1745282833973,0.063,135.74,135.72,0.14216157]
[1745282834160,0.063,135.74,135.73,20.40874495]
[1745282835880,0.063,135.74,135.73,125.88375538]
[1745282836174,0.063,135.74,135.73,151.88375538]
[1745282836350,0.063,135.74,135.73,133.23410652]
[1745282836550,0.063,135.74,135.73,106.618]
[1745282836758,0.063,135.74,135.73,127.02674495]
[1745282837851,0.063,135.74,135.73,145.81855538]
[1745282838052,0.063,135.75,135.74,18.79181043]
[1745282838254,0.063,135.75,135.74,39.20055538]
[1745282839946,0.063,135.75,135.74,46.40874495]
[1745282840364,0.063,135.75,135.74,65.20055538]
[1745282840878,0.114944,135.75,135.74,65.20055538]
[1745282841775,0.114944,135.75,135.74,26.0]
[1745282841968,0.114944,135.75,135.73,80.618]
[1745282842865,0.114944,135.75,135.74,20.40874495]
[1745282843078,0.114944,135.75,135.74,20.55090652]
[1745282843384,0.114944,135.75,135.74,46.55090652]
[1745282844280,0.114944,135.75,135.74,46.40874495]
[1745282844490,0.114944,135.75,135.74,26.0]
[1745282844662,0.114944,135.75,135.73,80.618]
[1745282845095,0.114944,135.75,135.73,101.02674495]
[1745282845591,0.114944,135.75,135.74,20.40874495]
[1745282847876,0.114944,135.75,135.73,80.618]
[1745282848089,0.114944,135.75,135.74,20.40874495]
[1745282848897,0.114944,135.75,135.73,101.02674495]
[1745282849100,0.114944,135.75,135.71,46.40874495]
[1745282849101,7.48185179,135.75,135.71,46.40874495]
[1745282849583,20.40874495,135.74,135.69,20.40874495]
[1745282849802,20.40874495,135.73,135.68,101.02674495]
[1745282849958,20.40874495,135.72,135.67,26.0]
[1745282850158,20.40874495,135.72,135.67,46.40874495]
[1745282850989,7.36865374,135.71,135.67,46.40874495]
[1745282851880,20.40874495,135.7,135.65,20.40874495]
[1745282852085,20.40874495,135.69,135.64,80.618]
[1745282852392,20.40874495,135.69,135.65,26.0]
[1745282852987,7.37028301,135.68,135.65,26.0]
[1745282853192,7.36992288,135.69,135.65,46.40874495]
[1745282853388,7.36992288,135.69,135.66,20.40874495]
[1745282853683,7.36992288,135.69,135.65,46.40874495]
[1745282853883,7.36992288,135.69,135.65,26.0]
[1745282854464,7.36992288,135.69,135.64,101.02674495]
[1745282854699,20.40874495,135.68,135.63,20.40874495]
[1745282854893,20.40874495,135.68,135.64,26.0]
[1745282855192,7.37082626,135.67,135.64,26.0]
[1745282855707,20.74,135.7,135.66,20.40874495]
[1745282856085,20.74,135.7,135.65,20.40874495]
[1745282856705,7.36995683,135.69,135.65,20.40874495]
[1745282857586,27.77870178,135.69,135.64,20.40874495]
[1745282857770,20.40874495,135.68,135.63,46.40874495]
[1745282858168,27.77870178,135.69,135.63,26.0]
[1745282858402,27.77870178,135.69,135.64,20.40874495]
[1745282858694,46.2030514,135.69,135.64,20.40874495]
[1745282859303,7.36995683,135.69,135.65,20.40874495]
[1745282860086,20.40874495,135.68,135.63,46.40874495]
[1745282860602,20.40874495,135.67,135.63,26.0]
[1745282861299,25.79430645,135.69,135.63,46.40874495]
[1745282861477,20.40874495,135.68,135.63,46.40874495]
[1745282862580,27.77870178,135.69,135.64,20.40874495]
[1745282862776,20.40874495,135.68,135.63,46.40874495]
[1745282862975,25.79430645,135.69,135.63,46.40874495]
[1745282863282,20.40874495,135.68,135.63,46.40874495]
[1745282863900,7.37082626,135.67,135.63,26.0]
[1745282864200,7.37082626,135.67,135.61,46.40874495]
[1745282864201,20.40874495,135.66,135.61,46.40874495]
[1745282864693,20.40874495,135.65,135.61,26.0]
[1745282864882,20.40874495,135.64,135.6,80.618]
[1745282865082,20.40874495,135.64,135.59,20.43874495]
[1745282865280,20.40874495,135.65,135.6,20.40874495]
[1745282865878,20.40874495,135.64,135.59,46.43874495]
[1745282866079,7.37300007,135.63,135.59,46.43874495]
[1745282867505,7.37300007,135.63,135.59,26.03]
[1745282867695,7.37300007,135.63,135.6,20.40874495]
[1745282868081,27.78120145,135.64,135.59,46.43874495]
[1745282868599,20.40874495,135.63,135.59,26.03]
[1745282868805,27.78120145,135.64,135.59,46.43874495]
[1745282869103,27.77957121,135.67,135.62,20.40874495]
[1745282869278,7.37082626,135.67,135.64,20.40874495]
[1745282869479,7.37082626,135.67,135.63,20.40874495]
[1745282870579,20.40874495,135.66,135.59,80.79016157]
[1745282870779,27.77957121,135.67,135.62,20.40874495]
[1745282870999,20.40874495,135.66,135.61,20.40874495]
[1745282871394,12.74783003,135.66,135.61,12.74783003]
[1745282871687,12.74783003,135.65,135.6,38.74783003]
[1745282872088,12.74783003,135.64,135.6,26.0]
[1745282872606,12.74783003,135.64,135.6,25.5]
[1745282872784,25.7997936,135.66,135.6,25.5]
[1745282872785,12.74783003,135.65,135.6,38.24783003]
[1745282872984,20.11919963,135.66,135.61,12.74783003]
[1745282873194,7.3713696,135.66,135.62,12.74783003]
[1745282873401,7.37064675,135.68,135.64,12.74783003]
[1745282873993,28.12996821,135.69,135.65,12.74783003]
[1745282874380,0.063,135.75,135.68,25.49566006]
[1745282874604,0.063,135.75,135.73,12.74783003]
[1745282874985,0.063,135.75,135.74,12.74783003]
[1745282877400,0.063,135.75,135.74,46.35279005]
[1745282878793,0.063,135.75,135.72,26.0]
[1745282879113,0.063,135.75,135.74,20.35279005]
[1745282880902,0.063,135.75,135.74,20.49495162]
[1745282881305,0.063,135.75,135.74,20.35279005]
[1745282886210,0.063,135.75,135.72,108.30536157]
[1745282886211,0.063,135.75,135.73,20.35279005]
[1745282886396,0.063,135.75,135.72,46.35279005]
[1745282886793,0.063,135.75,135.73,20.35279005]
[1745282887622,0.063,135.75,135.74,20.35279005]
[1745282888303,0.063,135.75,135.74,20.49495162]
[1745282888503,0.063,135.75,135.74,46.49495162]
[1745282888707,0.063,135.75,135.74,145.76260048]
[1745282888899,0.063,135.75,135.74,127.11295162]
[1745282889919,0.063,135.75,135.74,127.98590048]
[1745282890422,0.063,135.75,135.74,148.33869053]
[1745282890628,0.063,135.8,135.79,20.35279005]
[1745282892122,0.063,135.8,135.79,20.49495162]
[1745282893007,0.063,135.8,135.79,119.76260048]
[1745282893704,0.063,135.88,135.84,0.14216157]
[1745282894038,0.063,135.88,135.87,20.35279005]
[1745282894533,0.063,135.88,135.86,20.35279005]
[1745282894895,0.063,135.88,135.87,20.35279005]
[1745282896017,0.063,135.88,135.87,20.49495162]
[1745282896604,0.063,135.88,135.87,20.35279005]
[1745282897203,0.063,135.88,135.86,46.35279005]
[1745282897905,0.063,135.88,135.84,80.618]
[1745282898217,0.063,135.88,135.84,126.97079005]
[1745282898426,0.063,135.88,135.87,20.35279005]
[1745282898995,0.063,135.88,135.85,0.14216157]
[1745282899525,0.063,135.88,135.84,106.618]
[1745282899722,0.063,135.88,135.85,12.69981877]
[1745282900223,0.063,135.88,135.82,26.0]
[1745282900409,12.76281877,135.88,135.84,12.69981877]
[1745282900603,7.35997644,135.87,135.84,12.69981877]
[1745282902504,7.35997644,135.87,135.83,12.69981877]
[1745282902829,25.39963754,135.84,135.76,80.618]
[1745282903129,12.69981877,135.83,135.76,80.618]
[1745282903333,12.69981877,135.79,135.75,8.1331]
[1745282903496,12.69981877,135.79,135.75,1.5391]
[1745282903694,12.69981877,135.79,135.74,38.69981877]
[1745282903919,12.69981877,135.77,135.72,101.52591877]
[1745282904127,12.69981877,135.75,135.7,12.69981877]
[1745282904506,12.69981877,135.76,135.71,12.69981877]
[1745282904709,20.06618063,135.76,135.71,38.69981877]
[1745282904909,20.06618063,135.76,135.75,0.03]
[1745282906027,7.36636186,135.76,135.75,0.03]
[1745282906405,20.06618063,135.76,135.75,0.03]
[1745282907505,7.36636186,135.76,135.75,0.03]
[1745282907704,22.1946,135.8,135.75,20.39477025]
[1745282907705,41.04477025,135.8,135.75,20.39477025]
[1745282908012,20.36477025,135.78,135.75,0.03]
[1745282908224,20.36477025,135.79,135.75,0.03]
[1745282908521,7.36448423,135.79,135.75,0.03]
[1745282908727,20.68,135.8,135.77,20.36477025]
[1745282909024,48.40866541,135.8,135.75,46.39477025]
[1745282909331,28.04389516,135.8,135.75,46.39477025]
[1745282909622,48.40866541,135.8,135.75,46.39477025]
[1745282910129,20.36477025,135.78,135.75,26.03]
[1745282910737,20.36477025,135.79,135.75,26.03]
[1745282911035,7.36485491,135.78,135.75,26.03]
[1745282911204,7.36485491,135.78,135.75,46.39477025]
[1745282911408,7.36446828,135.79,135.75,46.39477025]
[1745282913120,28.0439349,135.8,135.76,20.36477025]
[1745282913333,48.40870515,135.8,135.75,46.39477025]
[1745282913522,7.36325122,135.81,135.77,20.36477025]
[1745282913709,20.64,135.83,135.79,20.36477025]
[1745282913910,20.36477025,135.82,135.77,20.36477025]
[1745282914110,20.36477025,135.82,135.76,0.14216157]
[1745282914311,20.36477025,135.81,135.76,20.50693182]
[1745282915014,7.36377025,135.8,135.76,20.50693182]
[1745282915834,7.36377025,135.8,135.75,112.7234]
[1745282916027,27.7285405,135.8,135.75,106.648]
[1745282916223,27.7285405,135.8,135.75,127.01277025]
[1745282917240,27.7285405,135.8,135.75,106.648]
[1745282917440,27.7285405,135.8,135.75,127.01277025]
[1745282917843,7.36377025,135.8,135.75,127.01277025]
[1745282918137,27.7285405,135.8,135.75,127.01277025]
[1745282918343,7.36377025,135.8,135.76,20.36477025]
[1745282918935,7.36214385,135.83,135.79,20.36477025]
[1745282919238,7.36214385,135.83,135.8,20.36477025]
[1745282919624,7.36214385,135.83,135.76,99.40981043]
[1745282919819,20.36477025,135.8,135.76,80.618]
[1745282920427,20.36477025,135.8,135.75,26.03]
[1745282920640,20.36477025,135.79,135.75,26.03]
[1745282920826,20.36477025,135.78,135.75,26.03]
[1745282921142,7.36539736,135.77,135.75,26.03]
[1745282921534,18.41021715,135.8,135.75,26.03]
[1745282921740,7.36431254,135.79,135.75,46.39477025]
[1745282922253,7.36431254,135.79,135.75,26.03]
[1745282922542,48.36877915,135.8,135.75,46.39477025]
[1745282922844,20.64,135.8,135.79,20.36477025]
[1745282923343,20.64,135.8,135.78,20.36477025]
[1745282924842,28.00384916,135.8,135.77,20.36477025]
[1745282925036,28.00384916,135.8,135.76,20.36477025]
[1745282925216,20.64,135.8,135.79,20.36477025]
[1745282925424,20.703,135.87,135.8,0.14216157]
[1745282925629,20.703,135.87,135.84,20.36477025]
[1745282925823,0.063,135.87,135.86,20.36477025]
[1745282929045,0.063,135.87,135.83,106.618]
[1745282929254,0.063,135.87,135.83,126.98277025]
[1745282929850,0.063,135.87,135.83,106.618]
[1745282930149,0.063,135.87,135.84,20.36477025]
[1745282930320,0.063,135.87,135.85,20.36477025]
[1745282931227,0.063,135.87,135.85,12.70131263]
[1745282931838,0.063,135.87,135.86,12.70131263]
[1745282932039,0.063,135.87,135.85,12.70131263]
[1745282932260,0.063,135.87,135.83,106.618]
[1745282932555,0.063,135.87,135.83,119.31931263]
[1745282932941,0.063,135.87,135.83,106.618]
[1745282933141,0.063,135.87,135.83,119.31931263]
[1745282933333,7.42297644,135.87,135.83,119.31931263]
[1745282934251,7.42297644,135.87,135.83,80.618]
[1745282934427,20.12428907,135.87,135.83,80.618]
[1745282934749,38.52423019,135.87,135.83,80.618]
[1745282935252,20.12428907,135.87,135.83,93.31931263]
[1745282935554,7.42297644,135.87,135.83,93.31931263]
[1745282935851,0.063,135.87,135.83,93.31931263]
[1745282936432,0.063,135.87,135.84,12.70131263]
[1745282936627,0.063,135.87,135.85,12.70131263]
[1745282940557,0.063,135.87,135.86,12.70131263]
[1745282940741,0.063,135.87,135.86,12.8434742]
[1745282941055,0.063,135.87,135.85,12.8434742]
[1745282941844,0.063,135.87,135.86,12.70131263]
[1745282942046,0.063,135.87,135.86,31.49312306]
[1745282943253,0.1148929,135.87,135.86,31.49312306]
[1745282944436,0.1148929,135.87,135.86,12.8434742]
[1745282944658,0.1148929,135.87,135.84,26.0]
[1745282944846,0.1148929,135.87,135.85,12.70131263]
[1745282945050,0.1148929,135.87,135.84,12.70131263]
[1745282945653,7.47490134,135.87,135.84,12.70131263]
[1745282945847,7.47490134,135.87,135.85,12.70131263]
[1745282946669,7.47490134,135.87,135.83,106.618]
[1745282946847,0.1148929,135.87,135.83,119.31931263]
[1745282947170,0.1148929,135.87,135.84,0.14216157]
[1745282947368,0.1148929,135.87,135.85,12.70131263]
[1745282948671,0.1148929,135.87,135.86,57.49312306]
[1745282948970,0.1148929,135.87,135.86,112.11112306]
[1745282949276,0.063,135.88,135.86,112.11112306]
[1745282949476,0.063,135.88,135.87,12.8434742]
[1745282949679,0.063,135.89,135.88,26.91641043]
[1745282949857,0.063,135.89,135.88,39.61772306]
[1745282953594,0.063,135.89,135.88,57.35096149]
[1745282954261,0.063,135.89,135.88,106.618]
[1745282954589,0.063,135.89,135.86,12.70131263]
[1745282956388,0.063,135.89,135.88,12.70131263]
[1745282957090,0.063,135.89,135.88,38.70131263]
[1745282957316,0.063,135.89,135.88,26.0]
[1745282957457,0.063,135.89,135.86,44.79181043]
[1745282957659,0.063,135.89,135.87,12.70131263]
[1745282958079,0.063,135.89,135.86,44.79181043]
[1745282958271,0.063,135.89,135.87,12.70131263]
[1745282958794,0.063,135.89,135.86,44.79181043]
[1745282958795,0.063,135.89,135.88,12.70131263]
[1745282960064,0.063,135.89,135.88,31.49312306]
[1745282960384,0.063,135.89,135.88,138.11112306]
[1745282963096,0.063,135.89,135.88,119.4614742]
[1745282963297,0.063,135.89,135.88,119.31931263]
[1745282965090,0.063,135.89,135.88,106.618]
[1745282965274,0.063,135.89,135.88,119.31931263]
[1745282965676,0.063,135.89,135.88,119.4614742]
[1745282968276,0.063,135.89,135.88,106.76016157]
[1745282968481,0.063,135.89,135.88,119.4614742]
[1745282969501,0.063,135.89,135.88,138.11112306]
[1745282973172,0.063,135.89,135.88,112.11112306]
[1745282974192,0.063,135.89,135.88,112.15112306]
[1745282975302,0.063,135.89,135.88,112.00896149]
[1745282976791,0.063,135.89,135.88,138.15112306]
[1745282981390,0.063,135.89,135.88,125.44981043]
[1745282981597,0.063,135.89,135.88,138.15112306]
[1745282982688,0.063,135.89,135.88,125.44981043]
[1745282982889,0.063,135.89,135.88,138.15112306]
[1745282983084,0.063,135.89,135.88,112.15112306]
[1745282989711,0.063,135.91,135.9,26.14216157]
[1745282989911,0.063,135.91,135.9,119.4614742]
[1745282992209,0.063,135.91,135.9,138.11112306]
[1745282995521,0.063,135.91,135.9,133.52805051]
[1745282996699,0.063,135.93,135.92,44.79181043]
[1745282996900,0.063,135.93,135.92,85.38301083]
[1745282998003,0.063,135.93,135.92,52.91005051]
[1745283001097,0.063,135.94,135.92,139.93801083]
[1745283001297,0.063,135.94,135.93,26.91005051]
[1745283007010,0.063,135.94,135.93,107.46505051]
[1745283007525,0.03,136.0,135.97,26.0]
[1745283007694,0.03,136.0,135.97,114.61024008]
[1745283007899,0.03,136.0,135.98,8.26040165]
[1745283008101,0.03,136.0,135.99,8.11824008]
[1745283008317,0.03,136.0,135.99,8.26040165]
[1745283009028,0.03,136.0,135.98,0.14216157]
[1745283010317,0.03,136.0,135.97,106.492]
[1745283010833,8.14824008,136.0,135.97,80.492]
[1745283011720,0.03,136.0,135.97,80.492]
[1745283012024,0.03,136.0,135.98,8.11824008]
[1745283012724,0.03,136.0,135.97,80.492]
[1745283012899,7.38294117,136.0,135.97,80.492]
[1745283013102,15.50118125,136.0,135.97,80.492]
[1745283013316,7.38294117,136.0,135.97,80.492]
[1745283013522,0.03,136.0,135.97,80.492]
[1745283013713,0.03,136.0,135.97,88.61024008]
[1745283014027,0.03,136.0,135.97,80.492]
[1745283014201,0.03,136.0,135.97,88.61024008]
[1745283014707,0.03,136.0,135.97,88.65024008]
[1745283017703,0.03,136.0,135.97,80.532]
[1745283019847,8.11824008,135.98,135.97,0.04]
[1745283021625,15.47226273,135.98,135.97,0.04]
[1745283021941,7.35402265,135.98,135.97,0.04]
[1745283022247,15.47186574,135.99,135.97,0.04]
[1745283023737,20.49,136.0,135.97,0.04]
[1745283023914,20.49,136.0,135.97,8.15824008]
[1745283024121,0.03,136.0,135.98,8.11824008]
[1745283024719,0.03,136.0,135.98,0.14216157]
[1745283025544,0.03,136.0,135.98,8.26040165]
[1745283025945,0.03,136.0,135.98,88.75240165]
[1745283026947,0.03,136.0,135.98,80.63416157]
[1745283027258,0.03,136.0,135.98,88.75240165]
[1745283027555,0.03,136.0,135.98,80.63416157]
[1745283028222,0.03,136.0,135.98,88.75240165]
[1745283029552,0.03,136.0,135.99,8.26040165]
[1745283030350,0.03,136.0,135.99,107.40205051]
[1745283033352,0.03,136.0,135.99,99.28381043]
[1745283033541,0.03,136.0,135.99,107.40205051]
[1745283034256,0.03,136.0,135.99,80.492]
[1745283035847,0.03,136.0,135.97,0.18216157]
[1745283036151,0.03,136.0,135.97,8.15824008]
[1745283036471,0.03,136.0,135.99,34.11824008]
[1745283037261,0.03,136.0,135.99,52.91005051]
[1745283037945,0.03,136.0,135.99,34.26040165]
[1745283038748,0.03,136.0,135.99,34.11824008]
[1745283039768,0.03,136.0,135.99,26.0]
[1745283040058,0.03,136.0,135.99,34.11824008]
[1745283042764,0.03,136.0,135.99,26.0]
[1745283042960,0.03,136.0,135.99,34.11824008]
[1745283043840,0.03,136.0,135.99,52.91005051]
[1745283044268,0.03,136.0,135.99,133.40205051]
[1745283046369,0.063,136.01,135.99,165.87501083]
[1745283046552,0.063,136.01,136.0,59.38301083]